[Event "*** Titled Tuesday Blitz"]
[Site "Chess.com"]
[Date "2021.04.06"]
[Round "8"]
[White "Raud100"]
[Black "aljado"]
[Result "1-0"]
[WhiteElo "2272"]
[BlackElo "2120"]
[TimeControl "180+1"]
[EndTime "11:28:51 PDT"]
[Termination "Raud100 won by resignation"]

1. d4 {[%clk 0:03:00.9]} 1... Nf6 {[%clk 0:02:58.1]} 2. c4 {[%clk 0:03:00.4]}
2... g6 {[%clk 0:02:57.9]} 3. Nc3 {[%clk 0:03:00.2]} 3... d5 {[%clk 0:02:58.3]}
4. cxd5 {[%clk 0:03:01.1]} 4... Nxd5 {[%clk 0:02:58]} 5. e4 {[%clk 0:03:02]}
5... Nxc3 {[%clk 0:02:56.8]} 6. bxc3 {[%clk 0:03:02.9]} 6... Bg7 {[%clk
0:02:56.8]} 7. Be3 {[%clk 0:03:03.8]} 7... O-O {[%clk 0:02:55.7]} 8. Qd2 {[%clk
0:03:04.7]} 8... c5 {[%clk 0:02:55.1]} 9. Rc1 {[%clk 0:03:03.8]} 9... Nc6 {[%clk
0:02:54.3]} 10. d5 {[%clk 0:03:03.3]} 10... Ne5 {[%clk 0:02:51.8]} 11. h3 {[%clk
0:03:03.7]} 11... Qa5 {[%clk 0:02:45.1]} 12. f4 {[%clk 0:03:03.4]} 12... Nd7
{[%clk 0:02:43.9]} 13. e5 {[%clk 0:03:03.8]} 13... Nb6 {[%clk 0:02:41.2]} 14. c4
{[%clk 0:03:00.2]} 14... Qxd2+ {[%clk 0:02:38.9]} 15. Kxd2 {[%clk 0:03:01.1]}
15... Bf5 {[%clk 0:02:35.5]} 16. Bxc5 {[%clk 0:02:56.5]} 16... Rac8 {[%clk
0:02:33.7]} 17. Bxe7 {[%clk 0:02:55.3]} 17... Rfe8 {[%clk 0:02:32.4]} 18. Bb4
{[%clk 0:02:43.4]} 18... h5 {[%clk 0:02:17.5]} 19. Nf3 {[%clk 0:02:42.8]} 19...
Bh6 {[%clk 0:02:12.7]} 20. g3 {[%clk 0:02:39.7]} 20... Be4 {[%clk 0:02:12.2]}
21. Ke3 {[%clk 0:02:36.5]} 21... f5 {[%clk 0:02:07.2]} 22. Be2 {[%clk
0:02:26.7]} 22... Na4 {[%clk 0:02:05.4]} 23. Rhd1 {[%clk 0:02:18.5]} 23... Nc5
{[%clk 0:02:02.9]} 24. Kd4 {[%clk 0:02:10]} 24... b6 {[%clk 0:01:50.6]} 25. Nd2
{[%clk 0:02:03.9]} 25... Bg2 {[%clk 0:01:46.6]} 26. Bf1 {[%clk 0:02:02.4]} 26...
Be4 {[%clk 0:01:44]} 27. Re1 {[%clk 0:01:56.1]} 27... a5 {[%clk 0:01:29.6]} 28.
Ba3 {[%clk 0:01:53.5]} 28... h4 {[%clk 0:01:16.4]} 29. Nxe4 {[%clk 0:01:45.6]}
29... Nxe4 {[%clk 0:01:14.6]} 30. Rxe4 {[%clk 0:01:40.9]} 30... fxe4 {[%clk
0:01:12.7]} 31. Kxe4 {[%clk 0:01:35.4]} 31... hxg3 {[%clk 0:01:12.1]} 32. Bg2
{[%clk 0:01:33.5]} 32... g5 {[%clk 0:01:07.9]} 33. f5 {[%clk 0:01:32.6]} 33...
g4 {[%clk 0:01:07.3]} 34. hxg4 {[%clk 0:01:32]} 34... Bxc1 {[%clk 0:01:05.3]}
35. Bxc1 {[%clk 0:01:32.9]} 35... b5 {[%clk 0:01:04]} 36. Bf1 {[%clk 0:01:20.4]}
36... bxc4 {[%clk 0:01:01.2]} 37. d6 {[%clk 0:01:18.7]} 37... Red8 {[%clk
0:00:49.5]} 38. Kd5 {[%clk 0:01:14.1]} 38... c3 {[%clk 0:00:48]} 39. e6 {[%clk
0:01:13.5]} 39... c2 {[%clk 0:00:40.3]} 40. e7 {[%clk 0:01:00.3]} 40... Rd7
{[%clk 0:00:39.7]} 41. Ke6 {[%clk 0:00:59.6]} 41... Rb7 {[%clk 0:00:36.3]} 42.
f6 {[%clk 0:00:57]} 42... Rb4 {[%clk 0:00:18.6]} 43. f7+ {[%clk 0:00:56]} 43...
Kg7 {[%clk 0:00:18.1]} 44. e8=Q {[%clk 0:00:53.7]} 44... Re4+ {[%clk 0:00:15.9]}
45. Kd7 {[%clk 0:00:53.8]} 45... Rexe8 {[%clk 0:00:13.8]} 46. fxe8=Q {[%clk
0:00:54.7]} 46... Rxe8 {[%clk 0:00:13.3]} 47. Kxe8 {[%clk 0:00:55.6]} 1-0

[Event "*** Titled Tuesday Blitz"]
[Site "Chess.com"]
[Date "2021.04.06"]
[Round "8"]
[White "zajka-molotok"]
[Black "fastestmindalive"]
[Result "0-1"]
[WhiteElo "2522"]
[BlackElo "2771"]
[TimeControl "180+1"]
[EndTime "11:28:52 PDT"]
[Termination "fastestmindalive won by resignation"]

1. Nf3 {[%clk 0:03:00.9]} 1... Nf6 {[%clk 0:02:58.4]} 2. c4 {[%clk 0:02:59.9]}
2... g6 {[%clk 0:02:56.9]} 3. Nc3 {[%clk 0:02:59.6]} 3... Bg7 {[%clk 0:02:57.4]}
4. e4 {[%clk 0:02:59.5]} 4... d6 {[%clk 0:02:57.7]} 5. d4 {[%clk 0:02:59.4]}
5... O-O {[%clk 0:02:58.3]} 6. Be2 {[%clk 0:02:59.8]} 6... Na6 {[%clk
0:02:58.8]} 7. O-O {[%clk 0:02:58.1]} 7... e5 {[%clk 0:02:59.5]} 8. d5 {[%clk
0:02:57.3]} 8... Nc5 {[%clk 0:02:59.2]} 9. Qc2 {[%clk 0:02:52.1]} 9... a5 {[%clk
0:02:59.7]} 10. h3 {[%clk 0:02:50.1]} 10... Ne8 {[%clk 0:02:58.2]} 11. Be3
{[%clk 0:02:45.8]} 11... f5 {[%clk 0:02:57.2]} 12. b3 {[%clk 0:02:34.6]} 12...
f4 {[%clk 0:02:56.5]} 13. Bxc5 {[%clk 0:02:34.2]} 13... dxc5 {[%clk 0:02:57.4]}
14. Nh2 {[%clk 0:02:29.4]} 14... h5 {[%clk 0:02:53.8]} 15. Rad1 {[%clk
0:02:21.2]} 15... Nd6 {[%clk 0:02:53.5]} 16. a3 {[%clk 0:02:03.7]} 16... Kh7
{[%clk 0:02:52.3]} 17. Na4 {[%clk 0:02:03.2]} 17... b6 {[%clk 0:02:51.8]} 18. b4
{[%clk 0:02:03.4]} 18... axb4 {[%clk 0:02:48.4]} 19. axb4 {[%clk 0:02:04.3]}
19... Bd7 {[%clk 0:02:48.6]} 20. Ra1 {[%clk 0:01:54.4]} 20... cxb4 {[%clk
0:02:48.8]} 21. c5 {[%clk 0:01:51.1]} 21... Bxa4 {[%clk 0:02:48.4]} 22. Rxa4
{[%clk 0:01:50.1]} 22... Rxa4 {[%clk 0:02:48.8]} 23. cxd6 {[%clk 0:01:50.1]}
23... Ra7 {[%clk 0:02:44.3]} 24. dxc7 {[%clk 0:01:48.6]} 24... Qxc7 {[%clk
0:02:43.6]} 25. Qb1 {[%clk 0:01:44.5]} 25... Qc3 {[%clk 0:02:30]} 26. Rc1 {[%clk
0:01:42.8]} 26... Qd2 {[%clk 0:02:23.6]} 27. Bc4 {[%clk 0:01:30]} 27... Rfa8
{[%clk 0:01:46.6]} 28. Nf1 {[%clk 0:01:06.3]} 28... Qd4 {[%clk 0:01:38.3]} 29.
Qxb4 {[%clk 0:01:03.7]} 29... Bf8 {[%clk 0:01:29.7]} 30. Qe1 {[%clk 0:01:00.6]}
30... Bc5 {[%clk 0:01:27.9]} 31. Nh2 {[%clk 0:00:56.6]} 31... Ra1 {[%clk
0:01:26.2]} 32. Nf3 {[%clk 0:00:37]} 32... Qxf2+ {[%clk 0:01:24.9]} 33. Kh2
{[%clk 0:00:30.4]} 33... Qxe1 {[%clk 0:01:24.4]} 34. Rxe1 {[%clk 0:00:29.8]}
34... Rxe1 {[%clk 0:01:24.2]} 35. Nxe1 {[%clk 0:00:30.7]} 35... Bf2 {[%clk
0:01:23.8]} 36. Nf3 {[%clk 0:00:17.1]} 36... Ra1 {[%clk 0:01:23.6]} 37. g4
{[%clk 0:00:13.5]} 37... fxg3+ {[%clk 0:01:21.2]} 38. Kg2 {[%clk 0:00:13.6]}
38... Rc1 {[%clk 0:01:03.1]} 39. Bb5 {[%clk 0:00:13]} 39... Bc5 {[%clk
0:00:59.1]} 40. Nxe5 {[%clk 0:00:12]} 40... Rc2+ {[%clk 0:00:58.5]} 41. Kxg3
{[%clk 0:00:07.5]} 41... Bd6 {[%clk 0:00:58.3]} 42. Kf3 {[%clk 0:00:06.3]} 42...
Bxe5 {[%clk 0:00:57.6]} 43. Bd3 {[%clk 0:00:06]} 43... Rc3 {[%clk 0:00:58]} 44.
Ke2 {[%clk 0:00:06.4]} 44... Kg7 {[%clk 0:00:57.7]} 45. Kd2 {[%clk 0:00:06.8]}
45... Rc5 {[%clk 0:00:57.6]} 46. Ke3 {[%clk 0:00:06.3]} 46... Kf6 {[%clk
0:00:57.6]} 0-1

[Event "*** Titled Tuesday Blitz"]
[Site "Chess.com"]
[Date "2021.04.06"]
[Round "8"]
[White "alejogarcia1999"]
[Black "elextranjero00"]
[Result "1/2-1/2"]
[WhiteElo "2423"]
[BlackElo "2575"]
[TimeControl "180+1"]
[EndTime "11:28:52 PDT"]
[Termination "Game drawn by repetition"]

1. d4 {[%clk 0:03:00.9]} 1... Nf6 {[%clk 0:02:59.1]} 2. c4 {[%clk 0:03:01.5]}
2... e6 {[%clk 0:02:58.7]} 3. Nc3 {[%clk 0:03:02.1]} 3... Bb4 {[%clk 0:02:58.8]}
4. Nf3 {[%clk 0:03:01.9]} 4... b6 {[%clk 0:02:57.5]} 5. e3 {[%clk 0:03:01.7]}
5... Bb7 {[%clk 0:02:55.9]} 6. Bd2 {[%clk 0:03:01.1]} 6... O-O {[%clk
0:02:53.2]} 7. Bd3 {[%clk 0:03:00.7]} 7... d6 {[%clk 0:02:52.1]} 8. O-O {[%clk
0:02:57.7]} 8... Nbd7 {[%clk 0:02:52]} 9. a3 {[%clk 0:02:57.2]} 9... Bxc3 {[%clk
0:02:51.9]} 10. Bxc3 {[%clk 0:02:57.5]} 10... Qe7 {[%clk 0:02:52.5]} 11. b4
{[%clk 0:02:49]} 11... Ne4 {[%clk 0:02:50.5]} 12. Bxe4 {[%clk 0:02:48.3]} 12...
Bxe4 {[%clk 0:02:49.6]} 13. d5 {[%clk 0:02:46.5]} 13... e5 {[%clk 0:02:31]} 14.
Nd2 {[%clk 0:02:30]} 14... Bg6 {[%clk 0:02:30.6]} 15. e4 {[%clk 0:02:20.5]}
15... f5 {[%clk 0:02:28.1]} 16. f3 {[%clk 0:02:19.4]} 16... Qg5 {[%clk
0:02:20.5]} 17. Qe2 {[%clk 0:02:17.7]} 17... Rf7 {[%clk 0:02:13.8]} 18. exf5
{[%clk 0:02:17.5]} 18... Bxf5 {[%clk 0:02:13.1]} 19. Ne4 {[%clk 0:02:17]} 19...
Bxe4 {[%clk 0:02:03.8]} 20. fxe4 {[%clk 0:02:17.9]} 20... Raf8 {[%clk 0:02:01]}
21. Bd2 {[%clk 0:02:08.4]} 21... Qg6 {[%clk 0:01:55.6]} 22. Rxf7 {[%clk
0:01:33.3]} 22... Rxf7 {[%clk 0:01:55.2]} 23. Re1 {[%clk 0:01:32.7]} 23... h5
{[%clk 0:01:38.9]} 24. Qd3 {[%clk 0:01:22.5]} 24... Qg4 {[%clk 0:01:25.9]} 25.
Qg3 {[%clk 0:01:19.2]} 25... Qxg3 {[%clk 0:01:15.8]} 26. hxg3 {[%clk 0:01:20.1]}
26... Kf8 {[%clk 0:00:58.4]} 27. Bg5 {[%clk 0:01:10.9]} 27... Ke8 {[%clk
0:00:57]} 28. Rf1 {[%clk 0:01:09.6]} 28... Rxf1+ {[%clk 0:00:46.9]} 29. Kxf1
{[%clk 0:01:10.5]} 29... a6 {[%clk 0:00:44.6]} 30. Kf2 {[%clk 0:01:07]} 30... b5
{[%clk 0:00:37.5]} 31. cxb5 {[%clk 0:00:57.5]} 31... axb5 {[%clk 0:00:38.4]} 32.
g4 {[%clk 0:00:56.1]} 32... hxg4 {[%clk 0:00:36.9]} 33. Kg3 {[%clk 0:00:56]}
33... Nb6 {[%clk 0:00:37]} 34. Kxg4 {[%clk 0:00:55.8]} 34... Nc4 {[%clk
0:00:36.6]} 35. Bc1 {[%clk 0:00:55.5]} 35... Kf7 {[%clk 0:00:34.7]} 36. Kf5
{[%clk 0:00:52.8]} 36... g6+ {[%clk 0:00:34.7]} 37. Kg5 {[%clk 0:00:52.6]} 37...
Kg7 {[%clk 0:00:33.1]} 38. g3 {[%clk 0:00:49.9]} 38... Nb6 {[%clk 0:00:31.4]}
39. Bb2 {[%clk 0:00:43.1]} 39... Nc4 {[%clk 0:00:28.7]} 40. Bc1 {[%clk
0:00:42.9]} 40... Nb6 {[%clk 0:00:28.7]} 41. Bb2 {[%clk 0:00:28.8]} 41... Nc4
{[%clk 0:00:21.6]} 42. Bc1 {[%clk 0:00:28.9]} 1/2-1/2

[Event "*** Titled Tuesday Blitz"]
[Site "Chess.com"]
[Date "2021.04.06"]
[Round "8"]
[White "SergeyShtyka"]
[Black "AttackSparrow"]
[Result "0-1"]
[WhiteElo "2401"]
[BlackElo "2541"]
[TimeControl "180+1"]
[EndTime "11:28:52 PDT"]
[Termination "AttackSparrow won on time"]

1. e4 {[%clk 0:03:00.9]} 1... c5 {[%clk 0:02:59]} 2. Nf3 {[%clk 0:03:01.1]} 2...
e6 {[%clk 0:02:58.5]} 3. d4 {[%clk 0:03:01.5]} 3... cxd4 {[%clk 0:02:59.4]} 4.
Nxd4 {[%clk 0:03:02.3]} 4... Nc6 {[%clk 0:03:00]} 5. Nc3 {[%clk 0:03:02.8]} 5...
Qc7 {[%clk 0:03:00.2]} 6. Be3 {[%clk 0:03:01.5]} 6... a6 {[%clk 0:03:00.4]} 7.
Be2 {[%clk 0:03:01.2]} 7... Nf6 {[%clk 0:03:00.5]} 8. O-O {[%clk 0:03:01.1]}
8... Be7 {[%clk 0:03:00.7]} 9. f4 {[%clk 0:03:00.3]} 9... d6 {[%clk 0:03:01.1]}
10. Bf3 {[%clk 0:03:00.4]} 10... O-O {[%clk 0:03:00.6]} 11. Qe1 {[%clk
0:02:57.9]} 11... Re8 {[%clk 0:02:59.9]} 12. Qg3 {[%clk 0:02:54.3]} 12... Bf8
{[%clk 0:02:57.9]} 13. Rae1 {[%clk 0:02:52.1]} 13... Nxd4 {[%clk 0:02:56.3]} 14.
Bxd4 {[%clk 0:02:52.1]} 14... e5 {[%clk 0:02:57.1]} 15. Be3 {[%clk 0:02:51]}
15... exf4 {[%clk 0:02:53.9]} 16. Bxf4 {[%clk 0:02:49.3]} 16... Be6 {[%clk
0:02:54.4]} 17. e5 {[%clk 0:02:42.5]} 17... dxe5 {[%clk 0:02:54.7]} 18. Bxe5
{[%clk 0:02:42.8]} 18... Qb6+ {[%clk 0:02:54.6]} 19. Kh1 {[%clk 0:02:42]} 19...
Bc4 {[%clk 0:02:50.1]} 20. Be2 {[%clk 0:02:31.6]} 20... Bxe2 {[%clk 0:02:43.4]}
21. Rxf6 {[%clk 0:02:29.1]} 21... Qxb2 {[%clk 0:02:02.2]} 22. Rxe2 {[%clk
0:02:16.8]} 22... Qc1+ {[%clk 0:01:47.9]} 23. Re1 {[%clk 0:02:13]} 23... Qxc2
{[%clk 0:01:29.4]} 24. Rf2 {[%clk 0:02:11.8]} 24... Qg6 {[%clk 0:01:22.6]} 25.
Qxg6 {[%clk 0:01:53.7]} 25... hxg6 {[%clk 0:01:23.5]} 26. Rfe2 {[%clk
0:01:44.6]} 26... Bb4 {[%clk 0:01:19]} 27. Bd4 {[%clk 0:01:35.4]} 27... Red8
{[%clk 0:01:08.8]} 28. Be5 {[%clk 0:01:02.2]} 28... f6 {[%clk 0:01:08.8]} 29.
Re4 {[%clk 0:00:58.8]} 29... Ba5 {[%clk 0:01:04.3]} 30. Ra4 {[%clk 0:00:50.4]}
30... b6 {[%clk 0:00:58.1]} 31. Rxa5 {[%clk 0:00:41.1]} 31... bxa5 {[%clk
0:00:59]} 32. Bc7 {[%clk 0:00:37.6]} 32... Rd3 {[%clk 0:00:58.1]} 33. Bxa5
{[%clk 0:00:37.2]} 33... Rc8 {[%clk 0:00:57.9]} 34. Ne4 {[%clk 0:00:32.7]} 34...
Rc2 {[%clk 0:00:53.4]} 35. a4 {[%clk 0:00:26.2]} 35... Ra2 {[%clk 0:00:49.4]}
36. Bb6 {[%clk 0:00:22.4]} 36... Rxa4 {[%clk 0:00:42.4]} 37. Nc5 {[%clk
0:00:22.2]} 37... Re3 {[%clk 0:00:42.9]} 38. Rb1 {[%clk 0:00:14.9]} 38... Rb4
{[%clk 0:00:40.7]} 0-1

[Event "*** Titled Tuesday Blitz"]
[Site "Chess.com"]
[Date "2021.04.06"]
[Round "8"]
[White "gahryman"]
[Black "MasterKroket"]
[Result "0-1"]
[WhiteElo "2716"]
[BlackElo "2530"]
[TimeControl "180+1"]
[EndTime "11:28:53 PDT"]
[Termination "MasterKroket won on time"]

1. e4 {[%clk 0:03:00.9]} 1... c5 {[%clk 0:03:00]} 2. Nf3 {[%clk 0:03:01]} 2...
e6 {[%clk 0:03:00.6]} 3. d4 {[%clk 0:03:00.5]} 3... cxd4 {[%clk 0:03:01.5]} 4.
Nxd4 {[%clk 0:03:01.1]} 4... Nc6 {[%clk 0:03:02.1]} 5. Nc3 {[%clk 0:03:01.2]}
5... Qc7 {[%clk 0:03:02.7]} 6. Be2 {[%clk 0:02:49.2]} 6... a6 {[%clk 0:03:03]}
7. O-O {[%clk 0:02:49.1]} 7... Nf6 {[%clk 0:03:03.6]} 8. Be3 {[%clk 0:02:48]}
8... Bb4 {[%clk 0:03:03.4]} 9. Na4 {[%clk 0:02:46.2]} 9... O-O {[%clk
0:03:03.5]} 10. Nxc6 {[%clk 0:02:43.8]} 10... bxc6 {[%clk 0:03:04.4]} 11. Nb6
{[%clk 0:02:44.3]} 11... Rb8 {[%clk 0:03:04.2]} 12. Nxc8 {[%clk 0:02:44.5]}
12... Rfxc8 {[%clk 0:03:05.1]} 13. Bxa6 {[%clk 0:02:42.1]} 13... Rf8 {[%clk
0:03:05.7]} 14. Bd3 {[%clk 0:02:42]} 14... Bd6 {[%clk 0:03:06.3]} 15. f4 {[%clk
0:02:31.9]} 15... e5 {[%clk 0:03:06.8]} 16. f5 {[%clk 0:02:31.6]} 16... Rxb2
{[%clk 0:03:07]} 17. Bg5 {[%clk 0:02:28.7]} 17... Be7 {[%clk 0:02:59.6]} 18.
Bxf6 {[%clk 0:02:20.7]} 18... Bxf6 {[%clk 0:02:59.4]} 19. Bc4 {[%clk 0:02:21.1]}
19... d5 {[%clk 0:02:56.3]} 20. Bb3 {[%clk 0:02:12.9]} 20... dxe4 {[%clk
0:02:44.1]} 21. Kh1 {[%clk 0:02:10.9]} 21... e3 {[%clk 0:02:41.9]} 22. Qc1
{[%clk 0:01:58.7]} 22... e4 {[%clk 0:02:41.7]} 23. Qxe3 {[%clk 0:01:58.1]} 23...
Re8 {[%clk 0:02:34.3]} 24. Rad1 {[%clk 0:01:56.1]} 24... c5 {[%clk 0:02:31]} 25.
Qe2 {[%clk 0:01:49.2]} 25... Bd4 {[%clk 0:02:14.2]} 26. g4 {[%clk 0:00:55.1]}
26... e3 {[%clk 0:02:10.3]} 27. Rf3 {[%clk 0:00:48.3]} 27... Qc6 {[%clk
0:01:57.2]} 28. Rf1 {[%clk 0:00:48.1]} 28... Qe4 {[%clk 0:01:56.7]} 29. g5
{[%clk 0:00:45.3]} 29... Kf8 {[%clk 0:01:50.6]} 30. g6 {[%clk 0:00:42]} 30...
hxg6 {[%clk 0:01:50.1]} 31. fxg6 {[%clk 0:00:41.7]} 31... f6 {[%clk 0:01:50.6]}
32. Qc4 {[%clk 0:00:40.2]} 32... Ke7 {[%clk 0:01:40.7]} 33. Qf7+ {[%clk
0:00:08.4]} 33... Kd8 {[%clk 0:01:40.9]} 34. Bd5 {[%clk 0:00:08.5]} 34... Qe7
{[%clk 0:01:37.4]} 35. c3 {[%clk 0:00:07.5]} 35... Bxc3 {[%clk 0:01:29.4]} 36.
Bc6 {[%clk 0:00:07.9]} 36... Rf8 {[%clk 0:01:21.9]} 37. Qxe7+ {[%clk 0:00:05.9]}
37... Kxe7 {[%clk 0:01:22.8]} 38. Rxe3+ {[%clk 0:00:06.8]} 38... Be5 {[%clk
0:01:23.7]} 39. Rd1 {[%clk 0:00:07]} 39... Rd8 {[%clk 0:01:09.4]} 40. Rxd8
{[%clk 0:00:06.6]} 40... Kxd8 {[%clk 0:01:10.3]} 41. Rd3+ {[%clk 0:00:03.4]}
41... Kc7 {[%clk 0:01:10.2]} 42. Be8 {[%clk 0:00:03.4]} 42... f5 {[%clk
0:01:08.3]} 43. Rd5 {[%clk 0:00:02.9]} 43... Rxh2+ {[%clk 0:00:56.1]} 44. Kg1
{[%clk 0:00:02.6]} 44... Re2 {[%clk 0:00:56.6]} 0-1

[Event "*** Titled Tuesday Blitz"]
[Site "Chess.com"]
[Date "2021.04.06"]
[Round "8"]
[White "VitaRasik"]
[Black "HackingKid98"]
[Result "1/2-1/2"]
[WhiteElo "2609"]
[BlackElo "2496"]
[TimeControl "180+1"]
[EndTime "11:28:55 PDT"]
[Termination "Game drawn by agreement"]

1. e4 {[%clk 0:03:00.9]} 1... c6 {[%clk 0:02:49.2]} 2. c4 {[%clk 0:02:59.7]}
2... d5 {[%clk 0:02:49.2]} 3. cxd5 {[%clk 0:02:59.8]} 3... cxd5 {[%clk
0:02:50.1]} 4. exd5 {[%clk 0:03:00.1]} 4... Nf6 {[%clk 0:02:49.1]} 5. Bb5+
{[%clk 0:03:00]} 5... Nbd7 {[%clk 0:02:48]} 6. Nc3 {[%clk 0:02:59.9]} 6... g6
{[%clk 0:02:47.7]} 7. d4 {[%clk 0:02:59.3]} 7... Bg7 {[%clk 0:02:47.8]} 8. d6
{[%clk 0:02:59.6]} 8... O-O {[%clk 0:02:46.6]} 9. dxe7 {[%clk 0:02:58.6]} 9...
Qxe7+ {[%clk 0:02:47.5]} 10. Nge2 {[%clk 0:02:58.6]} 10... a6 {[%clk 0:02:38.5]}
11. Bd3 {[%clk 0:02:58.1]} 11... b5 {[%clk 0:02:36.4]} 12. O-O {[%clk 0:02:58]}
12... Bb7 {[%clk 0:02:36.5]} 13. h3 {[%clk 0:02:56.5]} 13... Nb6 {[%clk
0:02:21.6]} 14. Re1 {[%clk 0:02:56.3]} 14... Qd7 {[%clk 0:02:14.1]} 15. Bf4
{[%clk 0:02:55.5]} 15... Rac8 {[%clk 0:02:02.9]} 16. Be5 {[%clk 0:02:43.1]}
16... Nfd5 {[%clk 0:01:39.6]} 17. Bxg7 {[%clk 0:02:38.5]} 17... Kxg7 {[%clk
0:01:38.7]} 18. Ne4 {[%clk 0:02:31.1]} 18... Nb4 {[%clk 0:01:22.4]} 19. Bb1
{[%clk 0:01:53.7]} 19... Rfd8 {[%clk 0:01:16.6]} 20. a3 {[%clk 0:01:45.1]} 20...
Bxe4 {[%clk 0:01:01.1]} 21. Bxe4 {[%clk 0:01:35.3]} 21... Nc6 {[%clk 0:00:58.7]}
22. Rc1 {[%clk 0:01:27.8]} 22... Nxd4 {[%clk 0:00:46.3]} 23. Rxc8 {[%clk
0:01:18.4]} 23... Nxc8 {[%clk 0:00:45.3]} 24. Nxd4 {[%clk 0:01:14.8]} 24... Qxd4
{[%clk 0:00:45.1]} 25. Qxd4+ {[%clk 0:01:13.3]} 25... Rxd4 {[%clk 0:00:46]} 26.
Bb7 {[%clk 0:01:13.2]} 26... Nd6 {[%clk 0:00:35.4]} 27. Re7 {[%clk 0:00:34]}
27... Rd1+ {[%clk 0:00:28.8]} 28. Kh2 {[%clk 0:00:33.9]} 28... Nxb7 {[%clk
0:00:28.7]} 29. Rxb7 {[%clk 0:00:33.2]} 29... Rd2 {[%clk 0:00:29.6]} 30. f3
{[%clk 0:00:17.2]} 30... Rxb2 {[%clk 0:00:29.2]} 31. Ra7 {[%clk 0:00:17.3]}
31... Ra2 {[%clk 0:00:20.4]} 32. Rxa6 {[%clk 0:00:17.4]} 32... b4 {[%clk
0:00:20.7]} 33. a4 {[%clk 0:00:17.7]} 33... b3 {[%clk 0:00:20.8]} 34. Rb6 {[%clk
0:00:15.9]} 34... Rxa4 {[%clk 0:00:18.8]} 35. Rxb3 {[%clk 0:00:15.7]} 35... Rc4
{[%clk 0:00:19.3]} 1/2-1/2

[Event "*** Titled Tuesday Blitz"]
[Site "Chess.com"]
[Date "2021.04.06"]
[Round "8"]
[White "Evgeny81"]
[Black "Koalaskakistis"]
[Result "1-0"]
[WhiteElo "2768"]
[BlackElo "2585"]
[TimeControl "180+1"]
[EndTime "11:28:59 PDT"]
[Termination "Evgeny81 won on time"]

1. e4 {[%clk 0:03:00.9]} 1... c5 {[%clk 0:02:58.5]} 2. d4 {[%clk 0:02:58]} 2...
cxd4 {[%clk 0:02:58.1]} 3. c3 {[%clk 0:02:58]} 3... d5 {[%clk 0:02:58.4]} 4.
exd5 {[%clk 0:02:55.1]} 4... Qxd5 {[%clk 0:02:59.3]} 5. Nf3 {[%clk 0:02:54.8]}
5... Nc6 {[%clk 0:02:59]} 6. cxd4 {[%clk 0:02:55]} 6... Bg4 {[%clk 0:02:57.3]}
7. Be2 {[%clk 0:02:54.2]} 7... O-O-O {[%clk 0:02:55.8]} 8. Nc3 {[%clk
0:02:54.2]} 8... Qh5 {[%clk 0:02:55.3]} 9. O-O {[%clk 0:02:51.5]} 9... e5 {[%clk
0:02:35.7]} 10. d5 {[%clk 0:02:50.5]} 10... Nf6 {[%clk 0:02:32]} 11. Qb3 {[%clk
0:02:42.7]} 11... Nd4 {[%clk 0:02:20]} 12. Nxd4 {[%clk 0:02:36.2]} 12... exd4
{[%clk 0:02:20.9]} 13. Bf4 {[%clk 0:02:29.7]} 13... Bd6 {[%clk 0:02:09.1]} 14.
Bxd6 {[%clk 0:02:29.5]} 14... Rxd6 {[%clk 0:02:09.7]} 15. Nb5 {[%clk 0:02:29.3]}
15... Rxd5 {[%clk 0:01:59]} 16. Nxa7+ {[%clk 0:02:06]} 16... Kb8 {[%clk
0:01:57.2]} 17. Nc6+ {[%clk 0:02:05.5]} 17... Kc7 {[%clk 0:01:54.8]} 18. Nxd4
{[%clk 0:01:30.4]} 18... Rxd4 {[%clk 0:01:39.7]} 19. Qc3+ {[%clk 0:01:29.3]}
19... Kb8 {[%clk 0:01:38.9]} 20. Qxd4 {[%clk 0:01:26.6]} 20... Bxe2 {[%clk
0:01:38.9]} 21. Rfc1 {[%clk 0:01:16.2]} 21... Ba6 {[%clk 0:01:30.4]} 22. Rc5
{[%clk 0:01:10.6]} 22... Qe2 {[%clk 0:01:26.4]} 23. h3 {[%clk 0:00:53]} 23...
Re8 {[%clk 0:01:25.5]} 24. Rac1 {[%clk 0:00:50.4]} 24... Qd3 {[%clk 0:01:01.3]}
25. Qf4+ {[%clk 0:00:41.2]} 25... Ka7 {[%clk 0:01:00.9]} 26. b4 {[%clk
0:00:36.5]} 26... Qe4 {[%clk 0:00:46.4]} 27. Qg3 {[%clk 0:00:16]} 27... Nd7
{[%clk 0:00:15.5]} 28. Ra5 {[%clk 0:00:14.8]} 28... Kb6 {[%clk 0:00:01.8]} 29.
Qc7+ {[%clk 0:00:13.7]} 29... Ka7 {[%clk 0:00:02.1]} 30. Rxa6+ {[%clk
0:00:14.2]} 1-0

[Event "*** Titled Tuesday Blitz"]
[Site "Chess.com"]
[Date "2021.04.06"]
[Round "8"]
[White "yonaltimur"]
[Black "ApoIogiA"]
[Result "0-1"]
[WhiteElo "1789"]
[BlackElo "2178"]
[TimeControl "180+1"]
[EndTime "11:28:59 PDT"]
[Termination "ApoIogiA won on time"]

1. e4 {[%clk 0:02:50.2]} 1... c6 {[%clk 0:02:57.7]} 2. d4 {[%clk 0:02:49]} 2...
d5 {[%clk 0:02:49.2]} 3. e5 {[%clk 0:02:49.2]} 3... c5 {[%clk 0:02:49]} 4. dxc5
{[%clk 0:02:46.4]} 4... Nc6 {[%clk 0:02:47.3]} 5. Nf3 {[%clk 0:02:43.7]} 5...
Bg4 {[%clk 0:02:46.3]} 6. Be2 {[%clk 0:02:37.3]} 6... e6 {[%clk 0:02:46]} 7. Bf4
{[%clk 0:02:28.5]} 7... Bxc5 {[%clk 0:02:41.3]} 8. O-O {[%clk 0:02:26.6]} 8...
Nge7 {[%clk 0:02:38.3]} 9. c4 {[%clk 0:02:20.5]} 9... O-O {[%clk 0:02:32]} 10.
Nc3 {[%clk 0:02:06.1]} 10... dxc4 {[%clk 0:02:17.1]} 11. Bxc4 {[%clk 0:01:59.4]}
11... Qxd1 {[%clk 0:01:59.2]} 12. Rfxd1 {[%clk 0:01:57.2]} 12... Bxf3 {[%clk
0:01:59.3]} 13. gxf3 {[%clk 0:01:56.3]} 13... Rfd8 {[%clk 0:01:58.4]} 14. Re1
{[%clk 0:01:27.3]} 14... h6 {[%clk 0:01:54.7]} 15. Ne4 {[%clk 0:01:16.8]} 15...
Bb4 {[%clk 0:01:29.4]} 16. Re2 {[%clk 0:01:04.2]} 16... g5 {[%clk 0:01:01.7]}
17. Bg3 {[%clk 0:01:01.9]} 17... Ng6 {[%clk 0:01:00.6]} 18. a3 {[%clk
0:00:17.7]} 18... Be7 {[%clk 0:00:57.4]} 19. Nc3 {[%clk 0:00:14.3]} 19... Rd4
{[%clk 0:00:51.4]} 20. Bb3 {[%clk 0:00:11.6]} 20... a6 {[%clk 0:00:48.9]} 21.
Kf1 {[%clk 0:00:10.7]} 21... Rad8 {[%clk 0:00:45.8]} 22. Ke1 {[%clk 0:00:10.1]}
22... b5 {[%clk 0:00:35.1]} 23. Rd1 {[%clk 0:00:08.6]} 23... Rxd1+ {[%clk
0:00:30.3]} 24. Bxd1 {[%clk 0:00:08.4]} 24... Na5 {[%clk 0:00:29.2]} 25. Bc2
{[%clk 0:00:06.3]} 25... Kg7 {[%clk 0:00:26.8]} 26. Bxg6 {[%clk 0:00:05.1]}
26... Kxg6 {[%clk 0:00:26.5]} 27. Ne4 {[%clk 0:00:05]} 27... Nc4 {[%clk
0:00:25.3]} 28. Rc2 {[%clk 0:00:02.4]} 28... Rd5 {[%clk 0:00:20.3]} 29. Re2
{[%clk 0:00:01.6]} 29... Bd8 {[%clk 0:00:17.2]} 0-1